fUSD/lending_fUSD_20260514
["ID","MTS","AMOUNT","RATE_DAILY","PERIOD"]
[422259989,1778773840000,-2405.55389864,0.00018831,2]
[422259952,1778773840000,-2451.0,0.00016325,2]
[422259971,1778773840000,-868.59581707,0.000182,2]
[422260013,1778773840000,-175.8020267,0.0002,2]
[422259985,1778773840000,-2233.44200512,0.00018651,2]
[422260051,1778773840000,-4955.9,0.00020548,2]
[422260052,1778773840000,-4955.9,0.00020548,2]
[422260031,1778773840000,-195.84146667,0.000205,18]
[422260036,1778773840000,-4955.9,0.00020548,2]
[422260053,1778773840000,-4955.9,0.00020548,2]
[422260046,1778773840000,-4955.9,0.00020548,2]
[422260033,1778773840000,-4955.9,0.00020548,2]
[422260043,1778773840000,-4955.9,0.00020548,2]
[422260028,1778773840000,-205.33613094,0.000205,18]
[422260027,1778773840000,-167.27462755,0.000205,18]
[422260035,1778773840000,-4955.9,0.00020548,2]
[422260032,1778773840000,-1202.58,0.00020547,2]
[422260045,1778773840000,-4955.9,0.00020548,2]
[422260039,1778773840000,-4955.9,0.00020548,2]
[422260042,1778773840000,-4955.9,0.00020548,2]
[422260047,1778773840000,-4955.9,0.00020548,2]
[422260049,1778773840000,-4955.9,0.00020548,2]
[422260038,1778773840000,-4955.9,0.00020548,2]
[422260040,1778773840000,-4955.9,0.00020548,2]
[422260029,1778773840000,-208.22844316,0.000205,18]
[422260048,1778773840000,-4955.9,0.00020548,2]
[422260034,1778773840000,-4955.9,0.00020548,2]
[422260054,1778773840000,-4955.9,0.00020548,2]
[422260050,1778773840000,-4955.9,0.00020548,2]
[422260055,1778773840000,-4955.9,0.00020548,2]
[422260044,1778773840000,-4955.9,0.00020548,2]
[422260026,1778773840000,-2682.57183977,0.00020475,2]
[422259974,1778773840000,-2154.0,0.00018321,2]
[422260030,1778773840000,-202.00068542,0.000205,18]
[422259994,1778773840000,-4112.0,0.00019412,2]
[422260016,1778773840000,-210.0,0.0002,2]
[422259980,1778773840000,-2233.44200512,0.00018488,2]
[422259972,1778773840000,-2193.33323751,0.00018233,2]
[422259992,1778773840000,-2233.44200512,0.00019307,2]
[422260008,1778773840000,-5955.0,0.0002,2]
[422260012,1778773840000,-175.8020267,0.0002,2]
[422260041,1778773840000,-4955.9,0.00020548,2]
[422259968,1778773840000,-3211.0,0.00017845,2]
[422259970,1778773840000,-868.59581707,0.00018,2]
[422260002,1778773840000,-154.0,0.0002,2]
[422260003,1778773840000,-252.0,0.0002,2]
[422260011,1778773840000,-175.8020267,0.0002,2]
[422259965,1778773840000,-231.33,0.00017309,2]
[422259978,1778773840000,-1202.58,0.00018462,2]
[422259963,1778773840000,-200.0,0.00017187,2]
[422260037,1778773840000,-4955.9,0.00020548,2]
[422260024,1778773840000,-2049.6,0.00020381,2]
[422260004,1778773840000,-15000.0,0.0002,2]
[422259984,1778773840000,-2233.44200512,0.00018623,2]
[422259990,1778773840000,-2233.44200512,0.00018863,2]
[422260006,1778773840000,-1398.0,0.0002,2]
[422259975,1778773840000,-1210.47,0.000184,2]
[422260022,1778773840000,-150.61,0.00020007,2]
[422260000,1778773840000,-2586.85809042,0.00019927,2]
[422259995,1778773840000,-478.76,0.00019459,2]
[422259973,1778773840000,-2319.72410669,0.00018283,2]
[422260072,1778773841000,-252.0,0.00021,2]
[422260099,1778773841000,-3667.15,0.00021273,2]
[422260087,1778773841000,-157.0,0.00021,2]
[422260081,1778773841000,-2905.0,0.00021,2]
[422260095,1778773841000,-1210.47,0.000211,2]
[422260071,1778773841000,-154.0,0.00021,2]
[422260089,1778773841000,-157.0,0.00021,2]
[422260067,1778773841000,-2193.33323751,0.00020567,2]
[422260057,1778773841000,-4955.9,0.00020548,2]
[422260104,1778773841000,-2000.0,0.00021459,2]
[422260094,1778773841000,-497.85,0.00021096,2]
[422260108,1778773841000,-2000.0,0.00021459,2]
[422260135,1778773841000,-2000.0,0.00021946,2]
[422260093,1778773841000,-2781.82699784,0.00021023,2]
[422260058,1778773841000,-4955.9,0.00020548,2]
[422260068,1778773841000,-2000.0,0.00020591,2]
[422260070,1778773841000,-178.0,0.00021,2]
[422260101,1778773841000,-497.85,0.00021411,2]
[422260077,1778773841000,-1982.0,0.00021,2]
[422260080,1778773841000,-210.0,0.00021,2]
[422260092,1778773841000,-157.0,0.00021,2]
[422260097,1778773841000,-1441.38,0.00021273,2]
[422260098,1778773841000,-1551.33,0.00021273,2]
[422260109,1778773841000,-2000.0,0.00021459,2]
[422260059,1778773841000,-4955.9,0.00020548,2]
[422260074,1778773841000,-6111.0,0.00021,2]
[422260103,1778773841000,-2000.0,0.00021459,2]
[422260056,1778773841000,-4955.9,0.00020548,2]
[422260064,1778773841000,-21796.06,0.00020548,2]
[422260140,1778773841000,-2000.0,0.00021946,2]
[422260078,1778773841000,-276.0,0.00021,2]
[422260105,1778773841000,-2000.0,0.00021459,2]
[422260069,1778773841000,-497.85,0.00020991,2]
[422260088,1778773841000,-157.0,0.00021,2]
[422260065,1778773841000,-2949.04960743,0.00020548,2]
[422260073,1778773841000,-15000.0,0.00021,2]
[422260060,1778773841000,-4955.9,0.00020548,2]
[422260061,1778773841000,-4955.9,0.00020548,2]
[422260062,1778773841000,-4955.9,0.00020548,2]
[422260085,1778773841000,-172.0,0.00021,2]
[422260082,1778773841000,-4032.0,0.00021,2]
[422260102,1778773841000,-4444.0,0.00021444,2]
[422260107,1778773841000,-2000.0,0.00021459,2]
[422260075,1778773841000,-15000.0,0.00021,2]
[422260084,1778773841000,-525.0485446,0.00021,2]
[422260083,1778773841000,-209.0,0.00021,2]
[422260096,1778773841000,-497.85,0.00021201,2]
[422260090,1778773841000,-157.0,0.00021,2]
[422260066,1778773841000,-5124.0,0.00020562,2]
[422260076,1778773841000,-6111.0,0.00021,2]
[422260091,1778773841000,-157.0,0.00021,2]
[422260063,1778773841000,-4955.9,0.00020548,2]
[422260100,1778773841000,-497.85,0.00021306,2]
[422260106,1778773841000,-2000.0,0.00021459,2]
[422260079,1778773841000,-1367.0,0.00021,2]
[422260170,1778773841000,-178.0,0.00023,2]
[422260110,1778773841000,-2000.0,0.00021459,2]
[422260117,1778773841000,-497.85,0.00021725,2]
[422260169,1778773841000,-2193.33323751,0.000229,2]
[422260118,1778773841000,-497.85,0.0002183,2]
[422260132,1778773841000,-2000.0,0.00021928,2]
[422260147,1778773841000,-252.0,0.00022,2]
[422260154,1778773841000,-209.0,0.00022,2]
[422260162,1778773841000,-196.30987008,0.00022407,2]
[422260136,1778773841000,-2000.0,0.00021946,2]
[422260138,1778773841000,-2000.0,0.00021946,2]
[422260142,1778773841000,-2000.0,0.00021946,2]
[422260112,1778773841000,-2000.0,0.00021459,2]
[422260128,1778773841000,-2000.0,0.00021928,2]
[422260126,1778773841000,-2000.0,0.00021928,2]
[422260145,1778773841000,-178.0,0.00022,2]
[422260149,1778773841000,-450.0,0.00022,2]
[422260151,1778773841000,-210.0,0.00022,2]
[422260165,1778773841000,-1873.56,0.00022466,2]
[422260167,1778773841000,-372.88041927,0.00022737,2]
[422260156,1778773841000,-273.02,0.00022,2]
[422260114,1778773841000,-2884.75459676,0.00021571,2]
[422260164,1778773841000,-765.41,0.00022466,2]
[422260166,1778773841000,-1202.58,0.00022558,2]
[422260115,1778773841000,-497.85,0.0002162,2]
[422260119,1778773841000,-5000.0,0.00021918,2]
[422260123,1778773841000,-2000.0,0.00021928,2]
[422260131,1778773841000,-2000.0,0.00021928,2]
[422260158,1778773841000,-2991.49051684,0.00022119,2]
[422260157,1778773841000,-497.90406695,0.0002204,2]
[422260143,1778773841000,-2000.0,0.00021946,2]
[422260130,1778773841000,-2000.0,0.00021928,2]
[422260150,1778773841000,-276.0,0.00022,2]
[422260124,1778773841000,-2000.0,0.00021928,2]
[422260116,1778773841000,-2949.04960743,0.00021689,2]
[422260121,1778773841000,-150.0,0.00021918,2]
[422260122,1778773841000,-10072.66,0.00021922,2]
[422260144,1778773841000,-2000.0,0.00021946,2]
[422260148,1778773841000,-1982.0,0.00022,2]
[422260152,1778773841000,-2905.0,0.00022,2]
[422260160,1778773841000,-3650.0,0.00022365,2]
[422260141,1778773841000,-2000.0,0.00021946,2]
[422260153,1778773841000,-4032.0,0.00022,2]
[422260168,1778773841000,-2949.04960743,0.00022831,2]
[422260111,1778773841000,-2000.0,0.00021459,2]
[422260163,1778773841000,-2000.0,0.00022463,2]
[422260161,1778773841000,-196.30987011,0.00022407,2]
[422260139,1778773841000,-2000.0,0.00021946,2]
[422260133,1778773841000,-500.0,0.00021928,2]
[422260127,1778773841000,-2000.0,0.00021928,2]
[422260159,1778773841000,-2049.6,0.00022353,2]
[422260125,1778773841000,-2000.0,0.00021928,2]
[422260146,1778773841000,-154.0,0.00022,2]
[422260155,1778773841000,-172.0,0.00022,2]
[422260113,1778773841000,-497.85,0.00021516,2]
[422260137,1778773841000,-2000.0,0.00021946,2]
[422260134,1778773841000,-497.85,0.00021935,2]
[422260129,1778773841000,-2000.0,0.00021928,2]
[422260120,1778773841000,-150.0,0.00021918,2]
[422260198,1778773842000,-154.0,0.00023,30]
[422260182,1778773842000,-154.0,0.00023,30]
[422260216,1778773842000,-154.0,0.00023,30]
[422260205,1778773842000,-154.0,0.00023,30]
[422260196,1778773842000,-154.0,0.00023,30]
[422260225,1778773842000,-154.0,0.00023,30]
[422260194,1778773842000,-154.0,0.00023,30]
[422260185,1778773842000,-154.0,0.00023,30]
[422260180,1778773842000,-166.0,0.00023,30]
[422260187,1778773842000,-154.0,0.00023,30]
[422260183,1778773842000,-154.0,0.00023,30]
[422260192,1778773842000,-154.0,0.00023,30]
[422260237,1778773842000,-159.0,0.00023,30]
[422260230,1778773842000,-159.0,0.00023,30]
[422260241,1778773842000,-159.0,0.00023,30]
[422260240,1778773842000,-159.0,0.00023,30]
[422260231,1778773842000,-159.0,0.00023,30]
[422260234,1778773842000,-159.0,0.00023,30]
[422260238,1778773842000,-159.0,0.00023,30]
[422260236,1778773842000,-159.0,0.00023,30]
[422260239,1778773842000,-159.0,0.00023,30]
[422260235,1778773842000,-159.0,0.00023,30]
[422260232,1778773842000,-159.0,0.00023,30]
[422260233,1778773842000,-159.0,0.00023,30]
[422260195,1778773842000,-154.0,0.00023,30]
[422260186,1778773842000,-154.0,0.00023,30]
[422260188,1778773842000,-154.0,0.00023,30]
[422260227,1778773842000,-159.0,0.00023,30]
[422260213,1778773842000,-154.0,0.00023,30]
[422260243,1778773842000,-159.0,0.00023,30]
[422260172,1778773842000,-252.0,0.00023,2]
[422260175,1778773842000,-200.0,0.00023,30]
[422260178,1778773842000,-200.0,0.00023,30]
[422260174,1778773842000,-200.0,0.00023,30]
[422260173,1778773842000,-1982.0,0.00023,2]
[422260176,1778773842000,-10000.0,0.00023,30]
[422260179,1778773842000,-363.0,0.00023,30]
[422260177,1778773842000,-200.0,0.00023,30]
[422260171,1778773842000,-164.54203541,0.00023,2]
[422260181,1778773842000,-154.0,0.00023,30]
[422260191,1778773842000,-154.0,0.00023,30]
[422260226,1778773842000,-162.0,0.00023,30]
[422260203,1778773842000,-154.0,0.00023,30]
[422260228,1778773842000,-159.0,0.00023,30]
[422260189,1778773842000,-154.0,0.00023,30]
[422260208,1778773842000,-154.0,0.00023,30]
[422260200,1778773842000,-154.0,0.00023,30]
[422260211,1778773842000,-154.0,0.00023,30]
[422260221,1778773842000,-154.0,0.00023,30]
[422260184,1778773842000,-154.0,0.00023,30]
[422260190,1778773842000,-154.0,0.00023,30]
[422260193,1778773842000,-154.0,0.00023,30]
[422260197,1778773842000,-154.0,0.00023,30]
[422260229,1778773842000,-159.0,0.00023,30]
[422260210,1778773842000,-154.0,0.00023,30]
[422260224,1778773842000,-154.0,0.00023,30]
[422260242,1778773842000,-159.0,0.00023,30]
[422260301,1778773842000,-350.0,0.00023996,2]
[422260244,1778773842000,-276.0,0.00023,2]
[422260271,1778773842000,-1000.0,0.00023535,2]
[422260272,1778773842000,-1000.0,0.00023535,2]
[422260276,1778773842000,-1000.0,0.00023535,2]
[422260275,1778773842000,-1000.0,0.00023535,2]
[422260280,1778773842000,-1700.0,0.00023572,2]
[422260281,1778773842000,-1700.0,0.00023572,2]
[422260291,1778773842000,-10072.66,0.00023845,2]
[422260292,1778773842000,-1210.47,0.000239,7]
[422260283,1778773842000,-1700.0,0.00023572,2]
[422260282,1778773842000,-1700.0,0.00023572,2]
[422260286,1778773842000,-1700.0,0.00023572,2]
[422260287,1778773842000,-1700.0,0.00023572,2]
[422260284,1778773842000,-1700.0,0.00023572,2]
[422260290,1778773842000,-150.0,0.00023671,2]
[422260288,1778773842000,-1700.0,0.00023572,2]
[422260289,1778773842000,-1489.0,0.00023572,2]
[422260293,1778773842000,-2949.04960743,0.00023973,2]
[422260295,1778773842000,-350.0,0.00023996,2]
[422260294,1778773842000,-350.0,0.00023996,2]
[422260296,1778773842000,-350.0,0.00023996,2]
[422260297,1778773842000,-350.0,0.00023996,2]
[422260298,1778773842000,-350.0,0.00023996,2]
[422260299,1778773842000,-350.0,0.00023996,2]
[422260300,1778773842000,-350.0,0.00023996,2]
[422260253,1778773842000,-152.0,0.00023195,7]
[422260270,1778773842000,-1000.0,0.00023535,2]
[422260279,1778773842000,-801.0,0.00023535,2]
[422260285,1778773842000,-1700.0,0.00023572,2]
[422260274,1778773842000,-1000.0,0.00023535,2]
[422260269,1778773842000,-2755.0,0.00023451,2]
[422260247,1778773842000,-2905.0,0.00023,2]
[422260246,1778773842000,-210.0,0.00023,2]
[422260249,1778773842000,-209.0,0.00023,2]
[422260248,1778773842000,-4032.0,0.00023,2]
[422260252,1778773842000,-214.39492035,0.00023115,27]
[422260250,1778773842000,-172.0,0.00023,2]
[422260251,1778773842000,-157.0,0.00023075,3]
[422260255,1778773842000,-1354.0,0.0002338,2]
[422260265,1778773842000,-174.0,0.0002338,2]
[422260262,1778773842000,-200.0,0.0002338,2]
[422260254,1778773842000,-500.0,0.00023212,2]
[422260257,1778773842000,-3542.0,0.0002338,2]
[422260245,1778773842000,-214.95940296,0.00023,30]
[422260256,1778773842000,-926.0,0.0002338,2]
[422260264,1778773842000,-417.0,0.0002338,2]
[422260278,1778773842000,-1000.0,0.00023535,2]
[422260267,1778773842000,-150.0,0.0002338,2]
[422260277,1778773842000,-1000.0,0.00023535,2]
[422260268,1778773842000,-3630.0,0.0002338,2]
[422260266,1778773842000,-150.0,0.0002338,2]
[422260273,1778773842000,-1000.0,0.00023535,2]
[422260261,1778773842000,-219.0,0.0002338,2]
[422260260,1778773842000,-1238.398,0.0002338,2]
[422260258,1778773842000,-150.0,0.0002338,2]
[422260263,1778773842000,-275.0,0.0002338,2]
[422260259,1778773842000,-1273.818,0.0002338,2]
[422260348,1778773843000,-226.81095167,0.00025,2]
[422260338,1778773843000,-556.0,0.00024959,2]
[422260356,1778773843000,-2949.04960743,0.00025114,2]
[422260336,1778773843000,-208.3309892,0.000249,7]
[422260353,1778773843000,-228.12944582,0.00025,2]
[422260342,1778773843000,-252.0,0.00025,2]
[422260352,1778773843000,-4050.87215205,0.00025,2]
[422260350,1778773843000,-2913.19869302,0.00025,2]
[422260335,1778773843000,-1000.0,0.00024658,2]
[422260340,1778773843000,-182.39684226,0.00025,2]
[422260354,1778773843000,-188.01962833,0.00025,2]
[422260344,1778773843000,-1982.12908863,0.00025,2]
[422260365,1778773843000,-157.0,0.00025421,3]
[422260346,1778773843000,-7078.40236706,0.00025,2]
[422260361,1778773843000,-2193.33323751,0.00025233,2]
[422260363,1778773843000,-7078.40236706,0.000253,2]
[422260358,1778773843000,-273.02,0.00025191,7]
[422260369,1778773843000,-392.14356605,0.00025557,21]
[422260368,1778773843000,-556.0,0.00025521,3]
[422260370,1778773843000,-150.0,0.00025565,2]
[422260366,1778773843000,-3651.0,0.00025463,2]
[422260373,1778773843000,-1551.33,0.00025786,2]
[422260371,1778773843000,-10072.66,0.00025767,7]
[422260367,1778773843000,-7078.40236706,0.000255,2]
[422260333,1778773843000,-1253.78,0.0002456,2]
[422260347,1778773843000,-279.98746232,0.00025,2]
[422260334,1778773843000,-1253.78,0.0002456,2]
[422260302,1778773843000,-350.0,0.00023996,2]
[422260328,1778773843000,-1253.78,0.00024558,2]
[422260308,1778773843000,-276.0,0.00024,2]
[422260309,1778773843000,-210.0,0.00024,2]
[422260305,1778773843000,-252.0,0.00024,2]
[422260313,1778773843000,-4032.0,0.00024,2]
[422260306,1778773843000,-1982.0,0.00024,2]
[422260314,1778773843000,-209.0,0.00024,2]
[422260304,1778773843000,-178.0,0.00024,2]
[422260303,1778773843000,-346.0,0.00023996,2]
[422260307,1778773843000,-500.0,0.00024,2]
[422260311,1778773843000,-2905.0,0.00024,2]
[422260315,1778773843000,-172.0,0.00024,2]
[422260316,1778773843000,-2133.0,0.00024021,2]
[422260317,1778773843000,-326.77,0.00024121,2]
[422260320,1778773843000,-906.0,0.00024275,10]
[422260318,1778773843000,-2774.0,0.00024275,10]
[422260319,1778773843000,-522.0,0.00024275,10]
[422260324,1778773843000,-307.92,0.00024439,15]
[422260322,1778773843000,-2049.6,0.00024324,2]
[422260321,1778773843000,-194.9476108,0.00024295,2]
[422260323,1778773843000,-556.0,0.00024397,2]
[422260325,1778773843000,-1253.78,0.00024556,2]
[422260327,1778773843000,-1253.78,0.00024558,2]
[422260337,1778773843000,-15322.0708329,0.000249,2]
[422260330,1778773843000,-1253.79,0.0002456,2]
[422260326,1778773843000,-1253.78,0.00024556,2]
[422260329,1778773843000,-1253.78,0.00024558,2]
[422260372,1778773843000,-1441.38,0.00025786,2]
[422260386,1778773843000,-1288.19,0.00026027,2]
[422260385,1778773843000,-532.35,0.00026027,2]
[422260406,1778773843000,-1291.37,0.00026113,2]
[422260408,1778773843000,-1712.54,0.00026113,2]
[422260410,1778773843000,-532.35,0.00026113,2]
[422260415,1778773843000,-1825.07,0.00026142,7]
[422260413,1778773843000,-1706.5,0.00026113,2]
[422260412,1778773843000,-1828.31,0.00026113,2]
[422260414,1778773843000,-1291.37,0.00026142,7]
[422260418,1778773843000,-532.35,0.00026142,7]
[422260411,1778773843000,-1288.19,0.00026113,2]
[422260421,1778773843000,-1706.5,0.00026142,7]
[422260416,1778773843000,-1712.54,0.00026142,7]
[422260422,1778773843000,-1202.58,0.0002615,2]
[422260417,1778773843000,-531.99,0.00026142,7]
[422260420,1778773843000,-1828.31,0.00026142,7]
[422260419,1778773843000,-1288.19,0.00026142,7]
[422260424,1778773843000,-1825.07,0.00026171,7]
[422260423,1778773843000,-1291.37,0.00026171,7]
[422260425,1778773843000,-1712.54,0.00026171,7]
[422260429,1778773843000,-1828.31,0.00026171,7]
[422260428,1778773843000,-1288.19,0.00026171,7]
[422260427,1778773843000,-532.35,0.00026171,30]
[422260430,1778773843000,-1706.5,0.00026171,7]
[422260426,1778773843000,-531.99,0.00026171,30]
[422260432,1778773843000,-1825.07,0.000262,2]
[422260375,1778773843000,-7078.40236706,0.000258,2]
[422260404,1778773843000,-1828.31,0.00026084,2]
[422260407,1778773843000,-1825.07,0.00026113,2]
[422260431,1778773843000,-1291.37,0.000262,2]
[422260405,1778773843000,-1706.5,0.00026084,2]
[422260409,1778773843000,-531.99,0.00026113,2]
[422260374,1778773843000,-3667.15,0.00025786,2]
[422260387,1778773843000,-1828.31,0.00026027,2]
[422260380,1778773843000,-1291.37,0.00026027,2]
[422260378,1778773843000,-214.95940296,0.00026,7]
[422260377,1778773843000,-7078.40236706,0.00026,2]
[422260384,1778773843000,-531.99,0.00026027,2]
[422260382,1778773843000,-1825.07,0.00026027,2]
[422260383,1778773843000,-1712.54,0.00026027,2]
[422260388,1778773843000,-1706.5,0.00026027,2]
[422260389,1778773843000,-1291.37,0.00026055,7]
[422260393,1778773843000,-532.35,0.00026055,7]
[422260376,1778773843000,-550.0,0.00026,2]
[422260394,1778773843000,-1288.19,0.00026055,7]
[422260402,1778773843000,-532.35,0.00026084,30]
[422260403,1778773843000,-1288.19,0.00026084,2]
[422260401,1778773843000,-531.99,0.00026084,30]
[422260391,1778773843000,-1712.54,0.00026055,7]
[422260400,1778773843000,-1712.54,0.00026084,2]
[422260399,1778773843000,-1825.07,0.00026084,2]
[422260398,1778773843000,-1291.37,0.00026084,2]
[422260396,1778773843000,-1706.5,0.00026055,7]
[422260395,1778773843000,-1828.31,0.00026055,7]
[422260392,1778773843000,-531.99,0.00026055,7]
[422260390,1778773843000,-1825.07,0.00026055,7]
[422260397,1778773843000,-556.0,0.00026082,3]
[422260478,1778773844000,-1706.5,0.00026315,7]
[422260470,1778773844000,-7078.40236706,0.000263,2]
[422260476,1778773844000,-1288.19,0.00026315,7]
[422260463,1778773844000,-531.99,0.00026286,2]
[422260467,1778773844000,-1706.5,0.00026286,2]
[422260465,1778773844000,-1288.19,0.00026286,2]
[422260462,1778773844000,-1712.54,0.00026286,2]
[422260459,1778773844000,-1825.07,0.00026286,2]
[422260457,1778773844000,-1291.37,0.00026286,2]
[422260464,1778773844000,-532.35,0.00026286,2]
[422260477,1778773844000,-1828.31,0.00026315,7]
[422260479,1778773844000,-1291.37,0.00026344,7]
[422260481,1778773844000,-1825.07,0.00026344,7]
[422260474,1778773844000,-531.99,0.00026315,7]
[422260472,1778773844000,-1825.07,0.00026315,7]
[422260471,1778773844000,-1291.37,0.00026315,7]
[422260473,1778773844000,-1712.54,0.00026315,7]
[422260482,1778773844000,-1712.54,0.00026344,7]
[422260485,1778773844000,-1288.19,0.00026344,7]
[422260483,1778773844000,-531.99,0.00026344,30]
[422260484,1778773844000,-532.35,0.00026344,30]
[422260469,1778773844000,-208.3309892,0.000263,7]
[422260486,1778773844000,-1828.31,0.00026344,7]
[422260475,1778773844000,-532.35,0.00026315,7]
[422260455,1778773844000,-1828.31,0.00026257,2]
[422260445,1778773844000,-1828.31,0.00026229,7]
[422260466,1778773844000,-1828.31,0.00026286,2]
[422260489,1778773844000,-1825.07,0.00026373,2]
[422260434,1778773844000,-531.99,0.000262,2]
[422260435,1778773844000,-532.35,0.000262,2]
[422260433,1778773844000,-1712.54,0.000262,2]
[422260439,1778773844000,-1291.37,0.00026229,7]
[422260438,1778773844000,-1706.5,0.000262,2]
[422260436,1778773844000,-1288.19,0.000262,2]
[422260441,1778773844000,-1712.54,0.00026229,7]
[422260437,1778773844000,-1828.31,0.000262,2]
[422260440,1778773844000,-1825.07,0.00026229,7]
[422260443,1778773844000,-532.35,0.00026229,7]
[422260453,1778773844000,-532.35,0.00026257,30]
[422260454,1778773844000,-1288.19,0.00026257,2]
[422260448,1778773844000,-2949.04960743,0.00026256,2]
[422260442,1778773844000,-531.99,0.00026229,7]
[422260444,1778773844000,-1288.19,0.00026229,7]
[422260446,1778773844000,-1706.5,0.00026229,7]
[422260447,1778773844000,-2000.0,0.00026244,2]
[422260450,1778773844000,-1825.07,0.00026257,2]
[422260449,1778773844000,-1291.37,0.00026257,2]
[422260452,1778773844000,-531.99,0.00026257,30]
[422260451,1778773844000,-1712.54,0.00026257,2]
[422260456,1778773844000,-1706.5,0.00026257,2]
[422260468,1778773844000,-2049.6,0.00026296,2]
[422260494,1778773844000,-1828.31,0.00026373,2]
[422260488,1778773844000,-1291.37,0.00026373,2]
[422260487,1778773844000,-1706.5,0.00026344,7]
[422260518,1778773844000,-1288.19,0.00026402,7]
[422260520,1778773844000,-1706.5,0.00026402,7]
[422260517,1778773844000,-532.35,0.00026402,7]
[422260523,1778773844000,-787.643953,0.00026402,2]
[422260528,1778773844000,-531.99,0.00026431,30]
[422260525,1778773844000,-1291.37,0.00026431,2]
[422260524,1778773844000,-787.643953,0.00026402,2]
[422260522,1778773844000,-787.643953,0.00026402,2]
[422260526,1778773844000,-1825.07,0.00026431,2]
[422260529,1778773844000,-532.35,0.00026431,30]
[422260531,1778773844000,-1828.31,0.00026431,2]
[422260521,1778773844000,-787.643953,0.00026402,2]
[422260530,1778773844000,-1288.19,0.00026431,2]
[422260533,1778773844000,-1062.333433,0.00026459,2]
[422260535,1778773844000,-1062.333433,0.00026459,2]
[422260538,1778773844000,-1291.37,0.00026459,2]
[422260537,1778773844000,-151.0,0.00026459,2]
[422260539,1778773844000,-151.0,0.00026459,2]
[422260536,1778773844000,-1062.333433,0.00026459,2]
[422260540,1778773844000,-892.364592,0.00026459,2]
[422260534,1778773844000,-1062.333433,0.00026459,2]
[422260541,1778773844000,-892.364592,0.00026459,2]
[422260542,1778773844000,-892.364592,0.00026459,2]
[422260490,1778773844000,-1712.54,0.00026373,2]
[422260532,1778773844000,-1706.5,0.00026431,2]
[422260519,1778773844000,-1828.31,0.00026402,7]
[422260527,1778773844000,-1712.54,0.00026431,2]
[422260512,1778773844000,-531.99,0.00026402,7]
[422260515,1778773844000,-882.070116,0.00026402,2]
[422260492,1778773844000,-532.35,0.00026373,2]
[422260491,1778773844000,-531.99,0.00026373,2]
[422260493,1778773844000,-1288.19,0.00026373,2]
[422260496,1778773844000,-1354.0,0.0002638,2]
[422260505,1778773844000,-150.0,0.0002638,2]
[422260495,1778773844000,-1706.5,0.00026373,2]
[422260500,1778773844000,-1270.0,0.0002638,2]
[422260499,1778773844000,-150.0,0.0002638,2]
[422260498,1778773844000,-3542.0,0.0002638,2]
[422260503,1778773844000,-413.574,0.0002638,2]
[422260501,1778773844000,-1223.0,0.0002638,2]
[422260497,1778773844000,-926.0,0.0002638,2]
[422260506,1778773844000,-3630.0,0.0002638,2]
[422260502,1778773844000,-150.0,0.0002638,2]